bitfinex/quotes_SOLUSD_20241107
["timestamp","ask_amount","ask_price","bid_price","bid_amount"]
[1730979907687,7.96241821,187.17,187.11,23.776884]
[1730979907887,7.96241821,187.16,187.11,23.776884]
[1730979908691,7.96241821,187.17,187.11,23.776884]
[1730979910495,7.96241821,187.17,187.11,31.73930221]
[1730979910890,7.96241821,187.18,187.11,31.73930221]
[1730979911895,7.96241821,187.17,187.11,23.776884]
[1730979913910,7.96241821,187.18,187.11,31.73930221]
[1730979914597,7.96241821,187.17,187.11,23.776884]
[1730979917205,7.96241821,187.16,187.11,23.776884]
[1730979922005,7.96241821,187.16,187.1,29.71591821]
[1730979922196,7.96241821,187.17,187.1,29.71591821]
[1730979927222,158.4,187.22,187.11,31.73930221]
[1730979927423,7.96241821,187.18,187.11,31.73930221]
[1730979927917,21.368163,187.24,187.14,7.96241821]
[1730979928095,7.96241821,187.21,187.14,7.96241821]
[1730979928706,7.96241821,187.22,187.15,7.96241821]
[1730979929123,7.96241821,187.21,187.15,7.96241821]
[1730979930404,7.96241821,187.21,187.14,7.96241821]
[1730979930605,7.96241821,187.21,187.15,23.776884]
[1730979930823,7.96241821,187.2,187.15,23.776884]
[1730979933640,7.96241821,187.19,187.1,21.7535]
[1730979933931,7.96241821,187.2,187.13,7.96241821]
[1730979935821,179.768163,187.24,187.15,7.96241821]
[1730979936008,7.96241821,187.22,187.15,7.96241821]
[1730979937827,7.96241821,187.22,187.16,7.96241821]
[1730979939418,0.12549,187.23,187.16,7.96241821]
[1730979939729,7.96241821,187.22,187.16,7.96241821]
[1730979942715,7.96241821,187.21,187.15,7.96241821]
[1730979944339,7.96241821,187.22,187.15,7.96241821]
[1730979945722,7.96241821,187.22,187.16,7.96241821]
[1730979946246,7.96241821,187.24,187.18,7.96241821]
[1730979946421,29.32535621,187.26,187.19,7.96241821]
[1730979946623,0.12549,187.25,187.19,7.96241821]
[1730979947039,5.55089758,187.29,187.2,31.73930221]
[1730979947343,7.96241821,187.26,187.2,31.73930221]
[1730979947725,7.96241821,187.27,187.2,31.73930221]
[1730979949646,7.96241821,187.26,187.2,31.73930221]
[1730979952436,7.96241821,187.26,187.19,7.96241821]
[1730979952637,21.35982,187.29,187.19,7.96241821]
[1730979952844,7.96241821,187.26,187.19,7.96241821]
[1730979953622,7.96241821,187.24,187.19,23.776884]
[1730979954445,7.96241821,187.27,187.2,7.96241821]
[1730979954744,0.12549,187.28,187.16,7.96241821]
[1730979954745,7.96241821,187.23,187.16,7.96241821]
[1730979958029,7.96241821,187.24,187.17,7.96241821]
[1730979959048,7.96241821,187.23,187.16,7.96241821]
[1730979959350,7.96241821,187.22,187.16,23.776884]
[1730979960243,7.96241821,187.23,187.16,31.73930221]
[1730979964549,7.96241821,187.22,187.16,23.776884]
[1730979968057,7.96241821,187.2,187.15,23.776884]
[1730979968364,7.96241821,187.2,187.14,23.776884]
[1730979970060,0.12549,187.26,187.14,23.776884]
[1730979970061,7.96241821,187.21,187.14,31.73930221]
[1730979971038,7.96241821,187.21,187.15,7.96241821]
[1730979972056,7.96241821,187.23,187.16,7.96241821]
[1730979972239,7.96241821,187.22,187.15,7.96241821]
[1730979972439,7.96241821,187.22,187.16,23.776884]
[1730979975456,7.96241821,187.22,187.15,7.96241821]
[1730979976560,21.364962,187.21,187.15,7.96241821]
[1730979977054,21.364962,187.21,187.14,7.96241821]
[1730979977257,21.364962,187.21,187.15,23.776884]
[1730979978267,29.32738021,187.21,187.15,23.776884]
[1730979980562,7.96241821,187.2,187.13,7.96241821]
[1730979982163,7.96241821,187.19,187.12,7.96241821]
[1730979982349,7.96241821,187.19,187.13,23.776884]
[1730979983688,7.96241821,187.19,187.12,7.96241821]
[1730979988769,8.08790821,187.2,187.13,7.96241821]
[1730979990167,0.12549,187.18,187.1,22.3241]
[1730979990361,0.12549,187.18,187.12,7.96241821]
[1730979992151,0.12549,187.18,187.13,7.96241821]
[1730979994776,0.12549,187.18,187.12,7.96241821]
[1730979999176,21.364962,187.17,187.12,7.96241821]
[1730980000571,21.364962,187.17,187.11,7.96241821]
[1730980004577,21.364962,187.17,187.12,7.96241821]
[1730980004885,7.96241821,187.2,187.13,7.96241821]
[1730980005476,0.12549,187.19,187.13,7.96241821]
[1730980005858,21.369037,187.21,187.13,7.96241821]
[1730980006069,158.4,187.22,187.15,7.96241821]
[1730980006374,187.72782621,187.22,187.15,7.96241821]
[1730980007880,7.96241821,187.21,187.15,7.96241821]
[1730980009566,21.365408,187.22,187.15,7.96241821]
[1730980009766,7.96241821,187.22,187.16,7.96241821]
[1730980010887,158.4,187.23,187.18,7.96241821]
[1730980011210,158.4,187.23,187.19,7.96241821]
[1730980011565,158.4,187.23,187.2,7.96241821]
[1730980011770,158.4,187.25,187.2,7.96241821]
[1730980011976,158.4,187.24,187.2,7.96241821]
[1730980014184,158.4,187.25,187.2,7.96241821]
[1730980014770,158.4,187.26,187.2,7.96241821]
[1730980015193,158.4,187.25,187.2,7.96241821]
[1730980016286,158.4,187.25,187.16,22.9412]
[1730980016287,158.4,187.25,187.17,43.776884]
[1730980016492,158.4,187.25,187.2,7.96241821]
[1730980018178,158.4,187.25,187.21,7.96241821]
[1730980018380,158.4,187.26,187.21,7.96241821]
[1730980018797,158.4,187.26,187.2,7.96241821]
[1730980019768,158.4,187.25,187.19,7.96241821]
[1730980020493,7.96241821,187.23,187.17,7.96241821]
[1730980021796,7.96241821,187.24,187.17,7.96241821]
[1730980022889,166.36241821,187.25,187.18,7.96241821]
[1730980023686,158.4,187.25,187.18,7.96241821]
[1730980023996,166.36241821,187.25,187.18,7.96241821]
[1730980024190,7.96241821,187.25,187.18,7.96241821]
[1730980025470,7.96241821,187.27,187.2,7.96241821]
[1730980026212,21.359443,187.28,187.2,7.96241821]
[1730980026387,29.32186121,187.28,187.21,7.96241821]
[1730980028778,29.32186121,187.28,187.2,7.96241821]
[1730980029192,7.96241821,187.27,187.2,7.96241821]
[1730980029803,7.96241821,187.26,187.19,7.96241821]
[1730980030376,7.96241821,187.25,187.17,23.776884]
[1730980030578,7.96241821,187.25,187.18,7.96241821]
[1730980030876,7.96241821,187.26,187.19,7.96241821]
[1730980031501,0.12549,187.27,187.19,7.96241821]
[1730980031681,7.96241821,187.26,187.19,7.96241821]
[1730980032399,7.96241821,187.23,187.16,22.9412]
[1730980032604,7.96241821,187.22,187.16,22.9412]
[1730980034292,0.12549,187.27,187.12,20.0]
[1730980034293,7.96241821,187.2,187.12,20.0]
[1730980034482,7.96241821,187.19,187.11,23.0189]
[1730980034686,7.96241821,187.19,187.12,7.96241821]
[1730980036096,7.96241821,187.18,187.12,7.96241821]
[1730980038102,7.96241821,187.19,187.12,7.96241821]
[1730980039983,7.96241821,187.19,187.13,7.96241821]
[1730980041802,0.12549,187.19,187.13,7.96241821]
[1730980044004,7.96241821,187.17,187.04,118.2153]
[1730980044201,7.96241821,187.17,187.05,43.776884]
[1730980044406,7.96241821,187.18,187.11,7.96241821]
[1730980045500,158.52549,187.22,187.05,43.876884]
[1730980045501,7.96241821,187.19,187.1,23.0177]
[1730980045689,158.4,187.22,187.1,23.0177]
[1730980045690,0.12549,187.17,187.1,23.0177]
[1730980045897,0.12549,187.17,187.11,7.96241821]
[1730980048009,7.96241821,187.17,187.1,30.98011821]
[1730980048323,7.96241821,187.17,187.05,43.776884]
[1730980048324,7.96241821,187.13,187.06,7.96241821]
[1730980048805,7.96241821,187.11,187.05,22.2503]
[1730980048997,7.96241821,187.11,187.05,30.21271821]
[1730980049192,7.96241821,187.12,187.05,30.21271821]
[1730980049401,7.96241821,187.11,187.05,30.21271821]
[1730980050212,7.96241821,187.11,187.05,22.2503]
[1730980050403,7.96241821,187.1,187.05,22.2503]
[1730980050709,7.96241821,187.09,187.02,7.96241821]
[1730980050912,0.22549,187.14,187.01,22.976]
[1730980050913,7.96241821,187.08,187.01,22.976]
[1730980051101,7.96241821,187.07,187.0,1.0]
[1730980051406,7.96241821,187.07,187.0,8.96241821]
[1730980052197,7.96241821,187.07,187.01,7.96241821]
[1730980053399,7.96241821,187.08,187.01,7.96241821]
[1730980056512,7.96241821,187.08,187.0,1.0]
[1730980056823,8.08790821,187.07,187.01,7.96241821]
[1730980057007,8.08790821,187.07,187.0,8.96241821]
[1730980058005,7.96241821,187.06,187.0,1.0]
[1730980058309,7.96241821,187.06,187.0,8.96241821]
[1730980058727,7.96241821,187.06,187.0,1.0]
[1730980060214,7.96241821,187.04,187.0,1.0]
[1730980062124,7.96241821,187.06,187.0,8.96241821]
[1730980064119,7.96241821,187.06,187.0,1.0]
[1730980066225,7.96241821,187.05,187.0,1.0]
[1730980068923,7.96241821,187.04,187.0,1.0]
[1730980071020,7.96241821,187.03,187.0,1.0]
[1730980071823,7.96241821,187.02,187.0,1.0]
[1730980072214,0.12549,187.07,187.0,1.0]
[1730980072406,7.96241821,187.03,187.0,1.0]
[1730980073914,7.96241821,187.04,187.0,1.0]
[1730980076830,0.12549,187.08,187.0,1.0]
[1730980077032,7.96241821,187.04,187.0,1.0]
[1730980078028,7.96241821,187.01,187.0,1.0]
[1730980078431,8.08790821,187.01,187.0,1.0]
[1730980085124,1.59498473,187.04,187.0,1.0]
[1730980085416,7.96241821,187.03,187.0,1.0]
[1730980086134,7.96241821,187.02,187.0,1.0]
[1730980089135,0.12549,187.01,187.0,1.0]
[1730980089332,158.4,187.06,187.0,1.0]
[1730980089533,7.96241821,187.02,187.0,1.0]
[1730980092840,8.08790821,187.01,187.0,1.0]
[1730980096548,63.81446505,187.01,187.0,1.0]
[1730980096932,0.12549,186.99,186.93,21.80090313]
[1730980097139,7.96241821,186.95,186.93,21.80090313]
[1730980097926,8.08790821,186.94,186.93,21.80090313]
[1730980098525,158.4,186.99,186.93,21.80090313]
[1730980099038,7.96241821,186.98,186.93,21.80090313]
[1730980101854,7.96241821,186.99,186.93,29.76332134]
[1730980103630,7.96241821,186.99,186.93,43.13722134]
[1730980105743,0.12549,187.03,186.93,43.13722134]
[1730980105744,0.12549,187.03,186.94,7.96241821]
[1730980105947,0.12549,187.03,186.93,43.13722134]
[1730980106149,7.96241821,187.0,186.93,43.13722134]
[1730980106846,7.96241821,186.99,186.93,43.13722134]
[1730980108237,7.96241821,186.98,186.93,35.17480313]
[1730980108456,7.96241821,186.99,186.93,35.17480313]
[1730980108661,7.96241821,187.0,186.93,43.13722134]
[1730980109342,7.96241821,187.01,186.94,7.96241821]
[1730980111055,7.96241821,187.03,186.96,7.96241821]
[1730980111265,7.96241821,187.03,186.97,21.6971]
[1730980112555,21.388956,187.07,186.98,7.96241821]
[1730980112738,7.96241821,187.04,186.98,7.96241821]
[1730980113748,7.96241821,187.04,186.97,29.65951821]
[1730980114554,7.96241821,187.02,186.97,21.6971]
[1730980114763,7.96241821,187.01,186.97,21.6971]
[1730980115058,7.96241821,187.0,186.97,21.6971]
[1730980115439,7.96241821,187.01,186.97,21.6971]
[1730980118042,21.388956,187.07,186.98,7.96241821]
[1730980118243,7.96241821,187.05,186.98,7.96241821]
[1730980123246,7.96241821,187.05,186.99,7.96241821]
[1730980124343,158.4,187.1,187.03,7.96241821]
[1730980124544,7.96241821,187.09,187.03,7.96241821]
[1730980126565,7.96241821,187.1,187.03,7.96241821]
[1730980127271,7.96241821,187.1,187.04,21.9279]
[1730980129065,7.96241821,187.09,187.04,21.9279]
[1730980134485,7.96241821,187.1,187.04,21.9279]
[1730980135470,7.96241821,187.11,187.04,29.89031821]
[1730980135775,0.12549,187.13,187.04,29.89031821]
[1730980136072,7.96241821,187.12,187.05,7.96241821]
[1730980136378,7.96241821,187.11,187.04,29.89031821]
[1730980138373,7.96241821,187.12,187.05,7.96241821]
[1730980139077,158.4,187.14,187.06,7.96241821]
[1730980139281,7.96241821,187.15,187.08,7.96241821]
[1730980139461,20.0,187.18,187.04,21.9279]
[1730980139462,179.773702,187.19,187.09,7.96241821]
[1730980139778,7.96241821,187.16,187.09,7.96241821]
[1730980141666,7.96241821,187.16,187.1,7.96241821]
[1730980142179,7.96241821,187.15,187.08,7.96241821]
[1730980142380,0.12549,187.19,187.07,7.96241821]
[1730980142586,7.96241821,187.14,187.07,7.96241821]
[1730980142883,7.96241821,187.13,187.07,7.96241821]
[1730980145762,0.12549,187.19,187.07,7.96241821]
[1730980145970,20.12549,187.19,187.07,7.96241821]
[1730980146174,7.96241821,187.13,187.07,7.96241821]
[1730980146886,7.96241821,187.13,187.07,23.776884]
[1730980147084,7.96241821,187.11,187.04,21.9279]
[1730980147277,7.96241821,187.11,187.04,29.89031821]
[1730980147482,7.96241821,187.1,187.04,21.9279]
[1730980147692,7.96241821,187.09,187.04,21.9279]
[1730980147983,7.96241821,187.07,187.0,21.7035]
[1730980148191,7.96241821,187.07,187.01,7.96241821]
[1730980148387,7.96241821,187.08,187.01,7.96241821]
[1730980148869,7.96241821,187.07,187.01,7.96241821]
[1730980149886,7.96241821,187.07,187.0,21.7035]
[1730980150082,7.96241821,187.07,187.01,7.96241821]
[1730980150585,7.96241821,187.07,187.0,29.66591821]
[1730980151989,7.96241821,187.06,187.0,29.66591821]
[1730980152378,7.96241821,187.06,187.0,21.7035]
[1730980152580,7.96241821,187.05,187.0,21.7035]
[1730980152971,7.96241821,187.04,187.0,21.7035]
[1730980154889,7.96241821,187.05,187.0,21.7035]
[1730980155479,7.96241821,187.04,187.0,21.7035]
[1730980159092,0.12549,187.06,186.98,7.96241821]
[1730980159301,7.96241821,187.04,186.97,7.96241821]
[1730980161493,7.96241821,187.03,186.96,29.74021821]
[1730980162892,7.96241821,187.04,186.97,7.96241821]
[1730980163086,7.96241821,187.05,186.98,7.96241821]
[1730980163495,29.34847221,187.05,186.98,7.96241821]
[1730980166005,7.96241821,187.06,186.99,7.96241821]
[1730980166206,29.34756721,187.06,186.99,7.96241821]
[1730980167093,7.96241821,187.05,186.99,7.96241821]
[1730980167287,7.96241821,187.05,186.98,7.96241821]
[1730980167492,21.385149,187.06,186.99,7.96241821]
[1730980167710,158.4,187.1,186.97,23.776884]
[1730980167711,163.7447,187.1,187.0,7.96241821]
[1730980168014,7.96241821,187.07,187.0,7.96241821]
[1730980168223,29.34604821,187.08,187.01,7.96241821]
[1730980168393,0.12549,187.07,187.01,7.96241821]
[1730980169814,8.08790821,187.07,186.97,23.776884]
[1730980169993,7.96241821,187.06,186.99,7.96241821]
[1730980170515,7.96241821,187.05,186.98,7.96241821]
[1730980170711,0.12549,187.07,186.97,31.73930221]
[1730980170712,7.96241821,187.04,186.97,31.73930221]
[1730980170907,7.96241821,187.04,186.97,7.96241821]
[1730980172096,7.96241821,187.05,186.98,7.96241821]
[1730980175615,7.96241821,187.04,186.97,12.99670442]
[1730980176003,0.12549,187.03,186.97,5.03428621]
[1730980176207,0.12549,187.03,186.97,12.99670442]
[1730980176419,0.12549,187.03,186.97,12.99731503]
[1730980177118,7.96241821,187.04,186.97,7.96241821]
[1730980181529,179.78363,187.08,186.98,7.96241821]
[1730980181702,7.96241821,187.05,186.98,7.96241821]
[1730980185812,7.96241821,187.04,186.97,31.73930221]
[1730980186814,7.96241821,187.04,186.97,23.776884]
[1730980187124,7.96241821,187.04,186.96,29.74021821]
[1730980188319,15.92483621,187.04,186.96,29.74021821]
[1730980189632,254.4,187.09,186.98,7.96241821]
[1730980189809,7.96241821,187.06,186.98,7.96241821]
[1730980190129,23.88725421,187.05,186.98,7.96241821]
[1730980190323,7.96241821,187.05,186.98,7.96241821]
[1730980191538,7.96241821,187.05,186.97,31.73930221]
[1730980192125,7.96241821,187.04,186.97,31.73930221]
[1730980193206,7.96241821,187.04,186.97,23.776884]
[1730980195934,7.96241821,187.04,186.96,29.74021821]
[1730980196235,7.96241821,187.03,186.96,29.74021821]
[1730980197820,7.96241821,187.02,186.96,21.7778]
[1730980200948,7.96241821,187.01,186.96,21.7778]
[1730980201232,7.96241821,187.02,186.96,21.7778]
[1730980202428,7.96241821,187.01,186.96,21.7778]
[1730980202817,7.96241821,186.99,186.96,21.7778]
[1730980204841,163.87159,187.05,186.96,21.7778]
[1730980205043,7.96241821,187.0,186.96,21.7778]
[1730980206631,7.96241821,187.01,186.96,21.7778]
[1730980207337,0.12549,187.04,186.96,29.74021821]
[1730980207540,7.96241821,187.02,186.96,21.7778]
[1730980207727,7.96241821,187.01,186.96,21.7778]
[1730980208130,7.96241821,187.03,186.96,29.74021821]
[1730980209059,7.96241821,187.02,186.96,21.7778]
[1730980209349,7.96241821,187.01,186.96,21.7778]
[1730980210127,7.96241821,187.02,186.96,21.7778]
[1730980210327,7.96241821,187.03,186.96,29.74021821]
[1730980211026,21.385322,187.06,186.97,31.73930221]
[1730980211232,7.96241821,187.04,186.97,31.73930221]
[1730980211833,21.385322,187.06,186.97,31.73930221]
[1730980212044,5.3446,187.11,187.0,7.96241821]
[1730980212352,7.96241821,187.07,187.0,7.96241821]
[1730980212551,7.96241821,187.06,187.0,7.96241821]
[1730980213452,21.382396,187.08,187.0,7.96241821]
[1730980213640,7.96241821,187.07,187.0,7.96241821]
[1730980214047,7.962419,187.09,187.03,6.0966]
[1730980214261,7.96241821,187.07,187.03,6.0966]
[1730980214949,7.96241821,187.08,187.03,6.0966]
[1730980216037,0.12549,187.11,187.03,6.0966]
[1730980216262,7.96241821,187.09,187.03,6.0966]
[1730980216755,7.96241821,187.08,187.03,6.0966]
[1730980216961,1.60149512,187.13,187.04,23.776884]
[1730980217252,7.96241821,187.11,187.04,31.73930221]
[1730980217445,7.96241821,187.12,187.06,23.776884]
[1730980217846,7.96241821,187.12,187.06,31.73930221]
[1730980218044,7.96241821,187.12,187.06,23.776884]
[1730980218455,163.93175899,187.19,187.07,7.96241821]
[1730980218637,7.96241821,187.15,187.09,15.3674]
[1730980218944,7.96241821,187.13,187.09,22.0288]
[1730980219142,7.96241821,187.14,187.09,22.0288]
[1730980219485,7.96241821,187.13,187.09,22.0288]
[1730980219765,7.96241821,187.14,187.09,22.0288]
[1730980220357,7.96241821,187.15,187.1,23.776884]
[1730980220853,0.12549,187.19,187.1,23.776884]
[1730980221063,7.96241821,187.15,187.1,23.776884]
[1730980222253,7.96241821,187.16,187.1,23.776884]
[1730980222451,5.341,187.23,187.1,31.73930221]
[1730980222669,7.96241821,187.18,187.13,23.776884]
[1730980223041,7.96241821,187.19,187.13,31.73930221]
[1730980223356,7.96241821,187.19,187.13,23.776884]
[1730980223651,7.96241821,187.16,187.09,29.99121821]
[1730980223873,7.96241821,187.13,187.09,22.0288]
[1730980224045,20.12549,187.23,187.09,22.0288]
[1730980224246,0.12549,187.21,187.09,22.0288]
[1730980224444,7.96241821,187.16,187.1,23.776884]
[1730980224758,7.96241821,187.15,187.1,23.776884]
[1730980225146,7.96241821,187.14,187.1,23.776884]
[1730980225448,7.96241821,187.13,187.09,22.0288]
[1730980231160,7.96241821,187.12,187.09,22.0288]
[1730980231550,158.4,187.19,187.09,22.0288]
[1730980231551,7.96241821,187.13,187.09,22.0288]
[1730980231761,7.96241821,187.14,187.09,22.0288]
[1730980232055,158.4,187.19,187.09,22.0288]
[1730980232261,7.96241821,187.15,187.09,22.0288]
[1730980233262,7.96241821,187.14,187.09,22.0288]
[1730980236065,7.96241821,187.13,187.09,22.0288]
[1730980236580,7.96241821,187.1,187.03,21.2176]
[1730980236865,158.4,187.17,187.03,21.2176]
[1730980237077,7.96241821,187.1,187.03,29.18001821]
[1730980237961,7.96241821,187.1,187.04,23.776884]
[1730980238162,7.96241821,187.09,187.04,23.776884]
[1730980244057,20.0,187.14,187.04,23.776884]
[1730980244273,7.96241821,187.09,187.04,23.776884]
[1730980248084,7.96241821,187.09,187.04,31.73930221]
[1730980250686,20.0,187.14,187.04,31.73930221]
[1730980250878,275.99566554,187.19,187.05,7.96241821]
[1730980251179,7.96241821,187.12,187.06,31.73930221]
[1730980251889,1.59566554,187.19,187.06,23.776884]
[1730980251890,7.96241821,187.1,187.06,23.776884]
[1730980252062,7.96241821,187.1,187.05,23.776884]
[1730980252379,7.96241821,187.09,187.04,23.776884]
[1730980252584,7.96241821,187.09,187.04,28.79574366]
[1730980255674,7.96241821,187.09,187.04,36.75816187]
[1730980255874,7.96241821,187.09,187.04,31.73930221]
[1730980257069,7.96241821,187.09,187.04,23.776884]
[1730980257265,7.96241821,187.09,187.04,36.75978645]
[1730980257470,7.96241821,187.09,187.04,31.73930221]
[1730980261076,7.96241821,187.08,187.04,23.776884]
[1730980261283,7.96241821,187.05,187.03,21.2176]
[1730980262079,31.84967284,187.1,186.97,0.1]
[1730980262080,7.96241821,187.04,186.98,21.5132]
[1730980262282,7.96241821,187.04,186.98,29.47561821]
[1730980262484,7.96241821,187.04,186.99,23.776884]
[1730980263280,7.96241821,187.05,187.0,7.96241821]
[1730980263578,7.96241821,187.05,187.01,23.776884]
[1730980264085,7.96241821,187.04,187.01,23.776884]
[1730980264279,7.96241821,187.05,187.0,23.776884]
[1730980266475,7.96241821,187.05,187.0,7.96241821]
[1730980266798,7.96241821,187.05,187.01,23.776884]
[1730980268295,7.96241821,187.02,186.98,21.5132]
[1730980269196,7.96241821,187.01,186.98,21.5132]
[1730980269384,7.96241821,187.02,186.98,21.5132]
[1730980269895,7.96241821,187.02,186.99,23.776884]
[1730980270697,7.96241821,187.04,186.99,31.73930221]
[1730980271587,7.96241821,187.04,186.99,23.776884]
[1730980273004,5.47059,187.09,186.99,23.776884]
[1730980273180,7.96241821,187.03,186.99,23.776884]
[1730980274390,7.96241821,187.04,186.99,23.776884]
[1730980280586,7.96241821,187.03,186.99,23.776884]
[1730980280786,7.96241821,187.02,186.99,23.776884]
[1730980280996,7.96241821,187.03,186.99,23.776884]
[1730980281503,7.96241821,187.02,186.99,23.776884]
[1730980281690,7.96241821,187.01,186.98,21.5132]
[1730980282313,7.96241821,187.0,186.93,43.54530313]
[1730980282609,7.96241821,187.0,186.94,27.96241821]
[1730980282810,7.96241821,187.0,186.95,23.776884]
[1730980283506,5.3462,187.05,186.95,23.776884]
[1730980283817,7.96241821,187.01,186.95,31.73930221]
[1730980286812,20.0,187.08,186.95,31.73930221]
[1730980287020,7.96241821,187.03,186.98,23.776884]
[1730980287613,7.96241821,187.02,186.98,23.776884]
[1730980287918,7.96241821,187.02,186.97,23.776884]
[1730980289701,7.96241821,187.03,186.97,23.776884]
[1730980289903,20.0,187.09,186.97,23.776884]
[1730980290202,7.96241821,187.03,186.97,31.73930221]
[1730980291007,7.96241821,187.0,186.93,21.80090313]
[1730980291211,7.96241821,186.96,186.93,21.80090313]
[1730980291602,7.96241821,186.95,186.93,21.80090313]
[1730980294210,7.96241821,186.96,186.93,21.80090313]
[1730980300122,7.96241821,186.95,186.93,21.80090313]
[1730980302525,21.39221,186.99,186.93,21.80090313]
[1730980302526,7.96241821,186.94,186.93,21.80090313]
[1730980303019,7.96241821,186.95,186.93,21.80090313]
[1730980307134,7.96241821,186.94,186.93,21.80090313]
[1730980308029,7.96241821,186.95,186.93,21.80090313]
[1730980308413,7.96241821,186.96,186.93,21.80090313]
[1730980310523,21.39221,186.99,186.93,21.80090313]
[1730980310716,7.96241821,186.96,186.93,21.80090313]
[1730980312832,7.96241821,186.95,186.93,21.80090313]
[1730980313042,7.96241821,186.94,186.93,21.80090313]
[1730980322414,8.08790821,186.94,186.93,21.80090313]
[1730980323232,33.53720821,186.94,186.88,0.5479304]
[1730980323539,7.96241821,186.89,186.88,0.5479304]
[1730980324224,15.92483721,186.89,186.88,0.5479304]
[1730980325320,0.12549,186.88,186.78,5.03485248]
[1730980325528,41.40102721,186.89,186.77,26.32895248]
[1730980325529,7.96241821,186.83,186.77,26.32895248]
[1730980326548,7.96241821,186.83,186.78,23.776884]
[1730980326721,7.96241821,186.83,186.78,28.81173648]
[1730980327041,7.96241821,186.84,186.78,28.81173648]
[1730980327420,7.96241821,186.84,186.78,36.77415469]
[1730980327620,7.96241821,186.85,186.8,23.776884]
[1730980327847,27.962419,186.89,186.8,28.81173648]
[1730980328022,7.96241821,186.86,186.8,36.77415469]
[1730980328222,7.96241821,186.86,186.8,31.73930221]
[1730980328537,7.96241821,186.86,186.8,23.776884]
[1730980328719,7.96241821,186.86,186.8,28.80725617]
[1730980328920,7.96241821,186.86,186.8,23.776884]
[1730980329639,7.962419,186.89,186.8,23.776884]
[1730980329946,7.96241821,186.86,186.8,23.776884]
[1730980330327,7.96241821,186.85,186.8,23.776884]
[1730980331032,7.96241821,186.83,186.8,23.776884]
[1730980331418,7.96241821,186.83,186.77,29.25651821]
[1730980331627,20.12549,186.88,186.77,21.2941]
[1730980331838,7.96241821,186.83,186.77,21.2941]
[1730980332048,7.96241821,186.83,186.77,29.25651821]
[1730980332837,7.96241821,186.83,186.78,23.776884]
[1730980335942,5.3516,186.86,186.78,23.776884]
[1730980335943,7.96241821,186.82,186.78,23.776884]
[1730980336329,7.96241821,186.81,186.77,21.2941]
[1730980337028,7.96241821,186.8,186.77,21.2941]
[1730980338935,7.96241821,186.78,186.69,28.43464635]
[1730980339133,7.96241821,186.77,186.71,7.96241821]
[1730980340044,7.96241821,186.77,186.69,22.3207486]
[1730980340351,7.96241821,186.77,186.71,7.96241821]
[1730980340851,7.96241821,186.76,186.7,7.96241821]
[1730980341054,7.96241821,186.77,186.71,7.96241821]
[1730980341435,7.96241821,186.77,186.72,23.776884]
[1730980342649,5.353,186.81,186.72,23.776884]
[1730980342650,7.96241821,186.78,186.72,23.776884]
[1730980342856,7.96241821,186.78,186.72,31.73930221]
[1730980345141,7.96241821,186.77,186.71,23.776884]
[1730980345360,7.96241821,186.77,186.7,31.73930221]
[1730980345649,7.96241821,186.78,186.71,7.96241821]
[1730980345955,7.96241821,186.78,186.72,7.96241821]
[1730980346531,7.96241821,186.78,186.7,23.776884]
[1730980346748,7.96241821,186.78,186.72,7.96241821]
[1730980347631,5.3529,186.82,186.72,7.96241821]
[1730980347831,5.3529,186.82,186.7,23.776884]
[1730980347832,7.96241821,186.79,186.73,7.96241821]
[1730980348739,7.96241821,186.79,186.72,7.96241821]
[1730980349548,7.96241821,186.79,186.73,31.73930221]
[1730980349746,5.3525,186.83,186.73,7.96241821]
[1730980350055,21.414508,186.78,186.73,23.776884]
[1730980350842,7.96241821,186.78,186.73,23.776884]
[1730980351542,7.96241821,186.76,186.69,22.3207486]
[1730980351745,7.96241821,186.76,186.7,31.73930221]
[1730980356667,7.96241821,186.77,186.7,31.73930221]
[1730980359180,7.96241821,186.73,186.69,0.5804486]
[1730980359468,7.96241821,186.72,186.69,0.5804486]
[1730980360446,7.96241821,186.71,186.69,0.5804486]
[1730980360754,7.96241821,186.72,186.69,0.5804486]
[1730980361551,7.96241821,186.71,186.69,0.5804486]
[1730980361750,7.96241821,186.7,186.69,0.5804486]
[1730980364868,7.962419,186.73,186.69,0.5804486]
[1730980365076,7.96241821,186.71,186.69,0.5804486]
[1730980365277,7.96241821,186.7,186.69,0.5804486]
[1730980366270,59.93758105,186.7,186.69,0.5804486]
[1730980366480,28.08790821,186.7,186.69,0.5804486]
[1730980367253,33.44400821,186.7,186.69,0.5804486]
[1730980367455,65.29368105,186.7,186.69,0.5804486]
[1730980368778,33.44400821,186.7,186.69,0.5804486]